bitfinex/quotes_SOLUSD_20220129
["timestamp","ask_amount","ask_price","bid_price","bid_amount"]
[1643464698102,0.25,98.179,98.116,0.25]
[1643464698502,0.25,98.179,98.116,2.76997615]
[1643464698700,0.25,98.199,98.117,2.51997615]
[1643464699100,0.25,98.199,98.116,0.25]
[1643464699301,0.25,98.209,98.116,0.25]
[1643464699502,6.0,98.2,98.116,0.25]
[1643464701006,0.25,98.199,98.116,0.25]
[1643464701802,0.25,98.209,98.116,0.25]
[1643464703004,6.0,98.2,98.116,0.25]
[1643464703406,0.25,98.199,98.116,0.25]
[1643464705004,0.25,98.199,98.115,39.40328931]
[1643464705605,6.25,98.199,98.115,39.40328931]
[1643464705804,6.0,98.19,98.077,2.51997615]
[1643464706005,6.0,98.189,98.077,2.51997615]
[1643464706307,6.0,98.188,98.077,2.51997615]
[1643464706505,6.0,98.18,98.077,2.51997615]
[1643464706706,21.298,98.18,98.061,101.8]
[1643464706905,0.25,98.179,98.07,6.0]
[1643464707105,0.25,98.179,98.072,6.0]
[1643464707304,0.25,98.179,98.073,101.8]
[1643464707804,0.25,98.179,98.084,146.7574898]
[1643464708206,0.25,98.179,98.085,0.25]
[1643464712538,0.25,98.179,98.085,102.05]
[1643464712939,0.25,98.179,98.095,6.0]
[1643464713337,0.25,98.179,98.096,0.25]
[1643464714239,0.25,98.179,98.084,44.9574898]
[1643464714436,0.25,98.179,98.085,0.25]
[1643464715040,0.25,98.179,98.094,6.0]
[1643464715239,0.25,98.179,98.095,0.25]
[1643464715839,6.0,98.18,98.096,2.51542566]
[1643464716042,6.0,98.188,98.106,6.0]
[1643464716239,6.0,98.188,98.107,41.30034247]
[1643464716638,47.9877,98.198,98.107,41.30034247]
[1643464717040,47.9877,98.198,98.117,6.0]
[1643464717238,0.25,98.197,98.118,0.25]
[1643464717438,0.25,98.197,98.107,41.30034247]
[1643464718039,6.0,98.188,98.107,41.30034247]
[1643464718242,0.25,98.187,98.107,41.30034247]
[1643464718642,0.25,98.187,98.107,41.05034247]
[1643464719842,0.25,98.187,98.108,0.25]
[1643464726248,15.297,98.18,98.108,0.25]
[1643464726448,21.297,98.18,98.108,0.25]
[1643464726649,0.25,98.179,98.108,0.25]
[1643464727948,21.297,98.18,98.108,0.25]
[1643464729353,0.25,98.179,98.108,0.25]
[1643464731051,6.0,98.18,98.108,0.25]
[1643464733554,12.4,98.23,98.109,2.51542566]
[1643464733756,2.38812926,98.229,98.119,6.0]
[1643464733955,10.63611885,98.229,98.12,114.2]
[1643464734157,2.38812926,98.228,98.12,116.96542566]
[1643464734356,2.38812926,98.228,98.13,6.0]
[1643464734558,6.0,98.218,98.131,40.86287753]
[1643464734758,0.25,98.217,98.131,41.11287753]
[1643464735256,10.63611885,98.216,98.131,41.11287753]
[1643464735655,0.25,98.215,98.131,35.11287753]
[1643464735855,0.25,98.224,98.131,35.11287753]
[1643464736057,10.63611885,98.214,98.131,35.11287753]
[1643464736258,0.25,98.213,98.131,35.11287753]
[1643464736457,0.25,98.213,98.131,34.86287753]
[1643464736658,0.25,98.213,98.141,6.0]
[1643464736860,10.63611885,98.212,98.141,6.0]
[1643464737061,6.0,98.202,98.141,6.0]
[1643464737285,0.25,98.201,98.131,34.86287753]
[1643464737959,6.25,98.201,98.131,34.86287753]
[1643464738959,6.0,98.201,98.131,34.86287753]
[1643464739362,6.0,98.201,98.132,0.25]
[1643464739567,6.0,98.2,98.132,0.25]
[1643464740063,6.0,98.2,98.131,34.86287753]
[1643464740263,0.25,98.199,98.132,0.25]
[1643464740463,0.25,98.199,98.131,34.86287753]
[1643464740762,0.25,98.199,98.094,112.8]
[1643464741062,10.65305785,98.198,98.095,0.25]
[1643464741262,0.25,98.197,98.094,112.8]
[1643464741462,6.0,98.188,98.094,112.8]
[1643464741663,24.8275,98.187,98.095,37.05364845]
[1643464741864,0.25,98.186,98.095,37.05364845]
[1643464742066,6.0,98.177,98.095,37.05364845]
[1643464742264,0.25,98.176,98.095,37.05364845]
[1643464742667,6.0,98.175,98.096,0.25]
[1643464742868,0.25,98.174,98.096,0.25]
[1643464743268,24.8275,98.187,98.096,0.25]
[1643464743269,6.0,98.177,98.096,0.25]
[1643464743871,6.0,98.177,98.095,37.05364845]
[1643464744674,0.25,98.176,98.095,37.05364845]
[1643464745294,0.25,98.176,98.096,0.25]
[1643464746297,6.0,98.177,98.096,0.25]
[1643464746896,6.0,98.177,98.096,102.05]
[1643464747097,6.0,98.177,98.106,6.0]
[1643464747305,6.0,98.177,98.107,0.25]
[1643464747497,6.0,98.189,98.107,0.25]
[1643464747697,0.25,98.176,98.107,0.25]
[1643464747897,0.25,98.188,98.107,0.25]
[1643464748100,6.25,98.188,98.107,0.25]
[1643464748504,6.25,98.188,98.096,0.25]
[1643464749902,6.25,98.188,98.097,2.50216156]
[1643464750101,6.25,98.188,98.107,6.0]
[1643464750301,6.25,98.188,98.108,0.25]
[1643464751100,6.0,98.188,98.108,0.25]
[1643464751700,6.0,98.188,98.106,6.0]
[1643464751900,6.0,98.188,98.107,0.25]
[1643464752900,6.0,98.188,98.105,6.0]
[1643464752901,6.0,98.188,98.106,0.25]
[1643464753303,0.25,98.187,98.106,0.25]
[1643464753600,0.25,98.187,98.096,0.25]
[1643464753801,0.25,98.187,98.107,2.50216156]
[1643464754003,23.3424,98.198,98.117,6.0]
[1643464754205,23.3424,98.198,98.118,42.30651345]
[1643464754403,23.3424,98.198,98.118,42.55651345]
[1643464754605,23.3424,98.198,98.128,6.0]
[1643464754808,23.3424,98.198,98.118,42.30651345]
[1643464755009,6.0,98.188,98.119,0.25]
[1643464755405,6.0,98.187,98.119,0.25]
[1643464755606,6.25,98.187,98.119,0.25]
[1643464755810,6.0,98.187,98.119,0.25]
[1643464756007,0.25,98.186,98.119,0.25]
[1643464756207,0.25,98.186,98.118,42.30651345]
[1643464757110,6.0,98.188,98.118,42.30651345]
[1643464757308,0.25,98.187,98.118,42.30651345]
[1643464757513,0.25,98.187,98.119,0.25]
[1643464758311,6.0,98.188,98.119,0.25]
[1643464759832,0.25,98.187,98.119,0.25]
[1643464761213,0.25,98.187,98.118,42.30651345]
[1643464762813,0.25,98.187,98.119,0.25]
[1643464763913,0.25,98.187,98.118,42.30651345]
[1643464764617,6.0,98.181,98.118,42.30651345]
[1643464765016,6.0,98.176,98.118,42.30651345]
[1643464765417,6.0,98.176,98.119,0.25]
[1643464765817,23.3424,98.198,98.119,0.25]
[1643464765818,6.0,98.188,98.119,0.25]
[1643464766217,0.25,98.187,98.119,0.25]
[1643464766418,10.90364398,98.187,98.119,0.25]
[1643464766617,6.0,98.177,98.119,0.25]
[1643464766821,0.25,98.176,98.119,0.25]
[1643464767418,6.0,98.188,98.119,0.25]
[1643464767619,0.25,98.187,98.119,0.25]
[1643464767822,6.0,98.188,98.119,0.25]
[1643464768420,10.65346308,98.187,98.119,0.25]
[1643464768626,6.0,98.177,98.119,0.25]
[1643464769026,6.0,98.176,98.119,0.25]
[1643464769226,6.25,98.176,98.119,0.25]
[1643464769832,2.83393934,98.217,98.119,0.25]
[1643464770033,23.3427,98.216,98.119,0.25]
[1643464770436,10.65169212,98.215,98.128,6.0]
[1643464770632,10.65169212,98.215,98.13,6.0]
[1643464770832,10.65169212,98.215,98.131,102.05]
[1643464771055,6.0,98.205,98.131,0.25]
[1643464771254,10.65169212,98.204,98.131,0.25]
[1643464771757,6.0,98.194,98.131,0.25]
[1643464772053,6.0,98.194,98.118,42.30651345]
[1643464772260,6.0,98.209,98.118,42.30651345]
[1643464772454,0.25,98.193,98.118,42.30651345]
[1643464772754,34.81134986,98.208,98.119,101.8]
[1643464772957,6.0,98.198,98.129,101.8]
[1643464773154,24.1585,98.208,98.129,101.8]
[1643464773355,6.0,98.198,98.13,0.25]
[1643464773556,6.0,98.188,98.129,0.25]
[1643464773759,6.0,98.188,98.119,0.25]
[1643464774255,0.25,98.187,98.119,0.25]
[1643464774755,0.25,98.196,98.119,0.25]
[1643464774956,0.25,98.196,98.091,17.74005549]
[1643464775155,0.25,98.196,98.09,112.8]
[1643464775355,10.65494619,98.195,98.09,112.8]
[1643464775561,1.41867288,98.175,98.09,112.8]
[1643464775757,0.25,98.174,98.09,112.8]
[1643464776057,6.0,98.165,98.091,36.46658892]
[1643464776256,23.1094,98.164,98.092,0.25]
[1643464776456,23.1094,98.164,98.091,36.46658892]
[1643464776661,6.0,98.154,98.091,36.46658892]
[1643464776858,23.1094,98.164,98.101,6.0]
[1643464777058,22.8594,98.164,98.101,6.0]
[1643464777861,22.8594,98.164,98.102,0.25]
[1643464779166,6.0,98.154,98.102,0.25]
[1643464779363,6.0,98.154,98.092,0.25]
[1643464780569,22.8594,98.164,98.092,0.25]
[1643464780768,0.25,98.163,98.092,0.25]
[1643464781167,1.41867288,98.178,98.092,0.25]
[1643464781368,1.41867288,98.185,98.101,6.0]
[1643464781568,6.0,98.175,98.103,6.0]
[1643464781767,6.0,98.175,98.104,0.25]
[1643464782166,6.0,98.176,98.113,45.26511889]
[1643464782369,6.0,98.176,98.114,0.25]
[1643464782572,6.0,98.176,98.123,6.0]
[1643464782770,6.0,98.176,98.124,0.25]
[1643464782973,6.0,98.177,98.124,0.25]
[1643464783370,0.25,98.176,98.124,0.25]
[1643464784471,6.0,98.18,98.124,0.25]
[1643464784675,6.0,98.181,98.124,0.25]
[1643464784875,6.0,98.181,98.114,0.25]
[1643464785071,6.0,98.179,98.114,0.25]
[1643464785477,6.0,98.178,98.114,0.25]
[1643464785676,6.25,98.178,98.114,0.25]
[1643464785876,6.25,98.178,98.091,0.25]
[1643464786288,1.41867288,98.177,98.091,0.25]
[1643464786497,6.0,98.17,98.091,0.25]
[1643464786688,6.0,98.167,98.091,38.89251245]
[1643464786888,6.0,98.164,98.091,38.89251245]
[1643464787089,6.0,98.163,98.101,6.0]
[1643464787289,1.41867288,98.184,98.102,0.25]
[1643464787589,1.41867288,98.184,98.102,8.74472384]
[1643464787789,1.41867288,98.184,98.103,2.49472384]
[1643464787990,6.0,98.174,98.113,6.0]
[1643464788200,1.41867288,98.187,98.104,0.25]
[1643464788391,6.0,98.179,98.114,35.13608857]
[1643464788592,6.0,98.174,98.114,35.13608857]
[1643464788791,6.0,98.174,98.115,0.25]
[1643464789399,6.0,98.177,98.09,112.8]
[1643464789595,6.0,98.169,98.09,112.8]
[1643464790019,6.0,98.165,98.09,112.8]
[1643464790222,6.0,98.165,98.091,43.31393344]
[1643464790420,6.0,98.158,98.092,0.25]
[1643464790827,6.0,98.158,98.101,6.0]
[1643464791026,6.0,98.163,98.092,0.25]
[1643464791523,6.0,98.169,98.092,0.25]
[1643464792024,6.0,98.163,98.092,0.25]
[1643464792426,0.25,98.162,98.092,0.25]
[1643464792623,6.25,98.162,98.091,43.31393344]
[1643464792825,6.0,98.162,98.091,43.31393344]
[1643464793024,6.0,98.159,98.091,43.31393344]
[1643464793430,0.25,98.158,98.091,43.31393344]
[1643464793830,0.25,98.158,98.092,0.25]
[1643464794226,6.0,98.16,98.092,0.25]
[1643464794431,0.25,98.159,98.092,0.25]
[1643464795228,6.0,98.16,98.092,0.25]
[1643464795430,6.0,98.16,98.101,6.0]
[1643464795629,6.0,98.161,98.103,6.0]
[1643464795829,6.0,98.161,98.104,0.25]
[1643464796032,6.0,98.169,98.104,0.25]
[1643464796230,1.41867288,98.165,98.104,0.25]
[1643464796430,6.0,98.166,98.104,0.25]
[1643464796629,6.0,98.155,98.104,0.25]
[1643464796830,0.25,98.154,98.104,0.25]
[1643464797031,0.25,98.154,98.092,0.25]
[1643464798029,6.0,98.154,98.092,0.25]
[1643464798431,6.0,98.154,98.101,6.0]
[1643464798645,1.41867288,98.179,98.103,6.0]
[1643464798832,0.25,98.178,98.104,0.25]
[1643464799032,0.25,98.178,98.104,2.74472384]
[1643464799234,1.41867288,98.185,98.104,2.74472384]
[1643464799434,1.41867288,98.185,98.114,6.0]
[1643464799633,1.41867288,98.185,98.11,12.4]
[1643464799634,1.41867288,98.211,98.12,6.0]
[1643464799833,1.41867288,98.211,98.121,0.25]
[1643464800031,1.41867288,98.22,98.153,0.31480856]
[1643464800231,1.41867288,98.234,98.16,12.4]
[1643464800435,1.41867288,98.241,98.161,45.39414126]
[1643464800632,2.32825026,98.27,98.161,45.39414126]
[1643464800633,1.41867288,98.237,98.161,45.64414126]
[1643464800931,6.0,98.231,98.161,45.64414126]
[1643464801134,6.0,98.225,98.161,45.64414126]
[1643464801434,1.41867288,98.236,98.162,2.49472384]
[1643464801636,2.83393934,98.275,98.172,6.0]
[1643464801833,2.83393934,98.275,98.181,46.70155206]
[1643464802031,22.5318,98.298,98.191,6.0]
[1643464802231,10.63631872,98.274,98.201,41.13060503]
[1643464802639,13.47025806,98.297,98.211,6.0]
[1643464802832,2.28034153,98.296,98.212,0.25]
[1643464803032,12.91666025,98.296,98.212,6.25]
[1643464803231,12.91666025,98.296,98.212,8.74472384]
[1643464803432,10.63631872,98.295,98.213,104.29472384]
[1643464803632,10.13631872,98.295,98.224,33.62647396]
[1643464803836,10.13631872,98.297,98.225,0.25]
[1643464804332,10.13631872,98.297,98.226,2.49472384]
[1643464804733,10.13631872,98.297,98.227,0.25]
[1643464805237,10.13631872,98.297,98.228,2.49469782]
[1643464805635,10.13631872,98.297,98.229,0.25]
[1643464805835,0.25,98.296,98.229,0.25]
[1643464806034,10.13631872,98.297,98.229,0.25]
[1643464806235,10.13631872,98.297,98.239,42.53860971]
[1643464806437,0.25,98.296,98.23,2.49469782]
[1643464806735,6.0,98.287,98.239,0.25]
[1643464807136,6.0,98.288,98.239,0.25]
[1643464807336,6.0,98.304,98.239,0.25]
[1643464807736,6.0,98.304,98.218,0.25]
[1643464807936,6.0,98.304,98.227,6.0]
[1643464808136,6.0,98.305,98.227,6.0]
[1643464808337,6.0,98.305,98.228,0.25]
[1643464808563,24.569,98.329,98.228,2.74469782]
[1643464808736,24.569,98.329,98.228,0.25]
[1643464809138,24.569,98.329,98.23,12.4]
[1643464809340,24.569,98.329,98.231,0.25]
[1643464809539,24.569,98.329,98.241,35.65248481]
[1643464809938,6.0,98.319,98.251,6.0]
[1643464810337,5.0,98.319,98.252,104.54469782]
[1643464810538,5.0,98.319,98.262,6.0]
[1643464810739,5.0,98.319,98.263,45.31328255]
[1643464810939,5.0,98.319,98.263,45.56328255]
[1643464811142,27.667,98.37,98.263,45.56328255]
[1643464811341,27.667,98.37,98.263,48.05798037]
[1643464811342,0.25,98.369,98.263,48.05798037]
[1643464811646,0.25,98.369,98.263,45.56328255]
[1643464811841,0.25,98.369,98.263,45.31328255]
[1643464812141,15.27,98.36,98.22,12.4]
[1643464812341,23.8169,98.359,98.238,0.25]
[1643464812544,6.0,98.349,98.238,0.25]
[1643464812841,0.25,98.348,98.238,0.25]
[1643464813044,29.2554,98.348,98.239,44.20592183]
[1643464813241,29.2554,98.348,98.24,0.25]
[1643464813650,29.2554,98.348,98.24,2.74469782]
[1643464814041,15.272,98.34,98.241,2.49469782]
[1643464814245,2.95669142,98.347,98.242,0.25]
[1643464814446,29.0054,98.348,98.251,6.0]
[1643464814747,29.0054,98.348,98.251,5.5]
[1643464814946,29.0054,98.348,98.252,2.73791266]
[1643464815144,29.0054,98.348,98.252,0.25]
[1643464815345,2.95669142,98.347,98.252,0.25]
[1643464815543,6.0,98.337,98.252,0.25]
[1643464815746,24.6299,98.336,98.252,0.25]
[1643464815944,27.83659142,98.336,98.207,101.8]
[1643464816147,15.275,98.32,98.208,44.73581226]
[1643464816344,24.8799,98.319,98.208,44.73581226]
[1643464816545,6.0,98.309,98.208,44.73581226]
[1643464816748,23.7472,98.308,98.208,44.73581226]
[1643464817246,6.0,98.298,98.208,44.73581226]
[1643464817645,0.25,98.297,98.208,44.73581226]
[1643464818748,0.25,98.297,98.209,0.25]
[1643464818947,6.0,98.298,98.209,2.74596105]
[1643464819147,6.0,98.298,98.218,6.0]
[1643464819350,6.0,98.298,98.219,6.25]
[1643464819548,6.0,98.309,98.219,0.25]
[1643464820547,6.0,98.309,98.212,0.25]
[1643464820749,6.0,98.309,98.22,2.49596105]
[1643464820949,6.0,98.309,98.22,14.89596105]
[1643464821155,6.0,98.309,98.221,0.25]
[1643464821349,0.25,98.308,98.221,104.54596105]
[1643464821749,6.0,98.309,98.221,104.54596105]
[1643464821750,3.25,98.309,98.221,104.54596105]
[1643464822150,3.25,98.309,98.221,0.25]
[1643464822354,3.25,98.309,98.221,102.05]
[1643464822954,3.25,98.309,98.221,0.25]
[1643464823154,3.25,98.309,98.221,102.05]
[1643464823354,0.25,98.308,98.221,102.05]
[1643464823574,0.25,98.308,98.221,0.25]
[1643464824479,0.25,98.308,98.221,2.74596105]
[1643464825277,0.25,98.308,98.221,104.54596105]
[1643464826176,0.25,98.308,98.221,102.05]
[1643464827979,0.25,98.318,98.221,102.05]
[1643464828181,0.25,98.318,98.221,104.54596105]
[1643464828982,6.0,98.309,98.221,104.54596105]
[1643464829882,0.25,98.308,98.221,104.54596105]
[1643464830081,6.0,98.309,98.221,104.54596105]
[1643464830281,0.25,98.308,98.221,104.54596105]
[1643464830683,6.0,98.309,98.231,6.0]
[1643464830981,23.6781,98.329,98.232,102.05]
[1643464831182,2.28019038,98.328,98.232,104.54596105]
[1643464831384,2.28019038,98.328,98.244,32.91399859]
[1643464831385,6.0,98.319,98.244,32.91399859]
[1643464831589,6.0,98.318,98.244,32.91399859]
[1643464831782,6.0,98.318,98.245,0.25]
[1643464831985,2.83393934,98.333,98.245,102.05]
[1643464832182,2.83393934,98.333,98.254,6.0]
[1643464832385,6.0,98.323,98.256,101.8]
[1643464832582,6.0,98.335,98.266,6.0]
[1643464832784,6.0,98.335,98.267,102.05]
[1643464832985,6.0,98.336,98.267,102.05]
[1643464833383,2.28000492,98.335,98.267,102.05]
[1643464833584,6.0,98.325,98.267,102.05]
[1643464833883,6.0,98.325,98.268,2.50400202]
[1643464834283,6.0,98.328,98.269,0.25]
[1643464834684,6.0,98.328,98.27,2.50400202]
[1643464834884,6.0,98.328,98.271,0.25]
[1643464836085,6.0,98.328,98.268,0.25]
[1643464836284,0.25,98.327,98.268,0.25]
[1643464838086,6.0,98.328,98.268,0.25]
[1643464838284,0.25,98.327,98.268,0.25]
[1643464840284,2.83393934,98.353,98.268,0.25]
[1643464840485,2.83393934,98.353,98.269,2.49870707]
[1643464840684,6.0,98.343,98.269,2.49870707]
[1643464840886,6.0,98.343,98.27,0.25]
[1643464841086,6.0,98.352,98.27,0.25]
[1643464841287,6.0,98.352,98.271,2.49342391]
[1643464841688,6.0,98.352,98.272,0.25]
[1643464842087,0.25,98.351,98.272,0.25]
[1643464842890,0.25,98.351,98.268,0.25]
[1643464843289,0.25,98.351,98.258,0.25]
[1643464843490,0.25,98.351,98.269,2.49342391]
[1643464843891,0.25,98.351,98.27,0.25]
[1643464844593,0.25,98.351,98.271,2.49342391]
[1643464844793,0.25,98.351,98.272,0.25]
[1643464845392,6.0,98.35,98.272,0.25]
[1643464845601,23.7395,98.349,98.272,0.25]
[1643464845995,6.0,98.339,98.269,0.25]
[1643464847197,0.25,98.338,98.269,0.25]
[1643464848199,0.25,98.338,98.269,2.74342391]
[1643464848999,0.25,98.338,98.256,2.49342391]
[1643464849199,12.4,98.33,98.202,112.8]
[1643464849403,2.52549295,98.329,98.18,12.4]
[1643464849600,6.0,98.319,98.2,2.49342391]
[1643464849903,0.25,98.318,98.2,2.49342391]
[1643464850100,6.0,98.31,98.201,34.53960448]
[1643464850299,0.25,98.309,98.201,34.53960448]
[1643464850500,0.25,98.309,98.202,101.8]
[1643464850701,0.25,98.309,98.202,102.05]
[1643464850900,23.2765,98.309,98.203,112.8]
[1643464851101,6.0,98.299,98.204,102.05]
[1643464851501,6.0,98.299,98.204,104.54342391]
[1643464851699,6.0,98.299,98.205,2.49342391]
[1643464851901,6.0,98.299,98.206,0.25]
[1643464852302,0.25,98.298,98.207,2.49342391]
[1643464852702,0.25,98.298,98.208,0.25]
[1643464852904,0.25,98.298,98.206,0.25]
[1643464853703,0.25,98.298,98.207,2.49342391]
[1643464853903,0.25,98.298,98.208,0.25]
[1643464854304,0.25,98.298,98.209,2.49342391]
[1643464854704,6.0,98.299,98.21,0.25]
[1643464854912,6.0,98.299,98.22,101.8]
[1643464855307,6.0,98.299,98.221,2.74342391]
[1643464855508,6.0,98.299,98.231,6.0]
[1643464855706,6.0,98.299,98.233,33.9835639]
[1643464855908,6.0,98.299,98.234,102.05]
[1643464856314,6.0,98.299,98.235,2.49342391]
[1643464856713,6.0,98.299,98.236,0.25]
[1643464857116,6.0,98.299,98.237,2.49342391]
[1643464857331,6.0,98.299,98.238,0.25]
[1643464857532,6.0,98.299,98.248,101.8]
[1643464858031,6.0,98.299,98.259,101.8]
[1643464858431,6.0,98.299,98.26,0.25]
[1643464858631,120.9677,98.329,98.26,0.25]
[1643464858832,23.9175,98.329,98.261,2.49342391]
[1643464859031,15.267,98.37,98.272,101.8]
[1643464859232,23.4827,98.369,98.272,101.8]
[1643464859431,23.4827,98.369,98.282,6.0]
[1643464859634,10.5620461,98.365,98.273,2.74342391]
[1643464859833,10.5620461,98.365,98.273,0.25]
[1643464860031,10.5620461,98.365,98.28,6.0]
[1643464860032,6.0,98.355,98.28,6.0]
[1643464860434,6.0,98.355,98.281,0.25]
[1643464860631,6.25,98.354,98.281,0.25]
[1643464860831,6.25,98.354,98.284,6.0]
[1643464861233,6.25,98.354,98.285,0.25]
[1643464862033,6.25,98.354,98.25,12.4]
[1643464862234,6.25,98.354,98.246,2.49342391]
[1643464862433,6.25,98.354,98.21,31.92223515]
[1643464862434,6.25,98.354,98.231,101.8]
[1643464862634,6.0,98.35,98.231,101.8]
[1643464862834,25.0694,98.349,98.232,2.49342391]
[1643464863040,6.0,98.339,98.233,45.4946169]
[1643464863535,0.25,98.338,98.234,2.49342391]
[1643464863736,10.56446994,98.337,98.234,101.8]
[1643464864136,6.0,98.327,98.234,101.8]
[1643464864335,0.25,98.326,98.234,101.8]
[1643464864536,6.25,98.326,98.234,101.8]
[1643464864937,6.0,98.326,98.235,0.25]
[1643464865140,6.0,98.326,98.235,2.49441393]
[1643464865341,6.0,98.326,98.234,101.8]
[1643464866341,6.0,98.326,98.235,0.25]
[1643464866540,6.0,98.326,98.235,2.74441393]
[1643464866742,6.0,98.326,98.244,6.0]
[1643464866941,6.0,98.326,98.245,107.8]
[1643464867141,6.0,98.326,98.245,0.25]
[1643464867542,6.0,98.326,98.251,6.0]
[1643464867943,6.0,98.326,98.252,0.25]
[1643464868148,0.25,98.325,98.252,0.25]
[1643464868343,0.25,98.325,98.253,2.49441393]
[1643464868747,0.25,98.325,98.254,0.25]
[1643464869143,0.25,98.325,98.255,2.49441393]
[1643464869343,0.25,98.325,98.256,0.25]
[1643464869543,6.0,98.326,98.265,6.0]
[1643464869743,45.4819,98.336,98.266,142.42291024]
[1643464869957,6.0,98.326,98.266,142.67291024]
[1643464870550,6.0,98.36,98.266,142.67291024]
[1643464871051,6.0,98.359,98.267,2.49441393]
[1643464871252,16.56155964,98.359,98.268,0.25]
[1643464871659,10.81155964,98.358,98.266,142.42291024]
[1643464872051,6.0,98.348,98.266,142.42291024]
[1643464872251,24.458,98.347,98.266,142.42291024]
[1643464872452,40.76955964,98.347,98.266,142.42291024]
[1643464872853,10.56155964,98.346,98.266,142.42291024]
[1643464873054,6.0,98.336,98.24,12.4]
[1643464873252,47.5861,98.335,98.239,2.49439602]
[1643464873464,47.5861,98.335,98.236,101.8]
[1643464873655,6.0,98.325,98.236,101.8]
[1643464873852,0.25,98.324,98.237,2.49439602]
[1643464874054,0.25,98.324,98.238,38.79184998]
[1643464874252,0.25,98.324,98.239,0.25]
[1643464874451,0.25,98.324,98.239,2.74439602]
[1643464874860,0.25,98.324,98.239,2.49439602]
[1643464875254,6.0,98.325,98.24,2.49439602]
[1643464875755,6.0,98.325,98.24,13.02439602]
[1643464875956,6.0,98.325,98.25,6.0]
[1643464876153,47.5861,98.335,98.251,101.8]
[1643464876354,6.0,98.325,98.251,104.54439602]
[1643464876554,0.25,98.334,98.261,6.0]
[1643464876755,23.1723,98.376,98.262,0.25]
[1643464877155,23.1723,98.376,98.271,44.13625729]
[1643464877355,23.1723,98.376,98.28,12.4]
[1643464877555,23.1723,98.376,98.29,6.0]
[1643464877756,23.1723,98.376,98.291,0.25]
[1643464877957,6.17021548,98.366,98.291,13.02]
[1643464878161,6.17021548,98.366,98.292,2.49439602]
[1643464878459,6.17021548,98.366,98.28,12.4]
[1643464878460,0.25,98.365,98.28,12.4]
[1643464878859,0.25,98.365,98.241,22.5209]
[1643464879058,10.55292951,98.364,98.25,2.49439602]
[1643464879259,10.55292951,98.364,98.272,101.8]
[1643464879459,6.0,98.354,98.272,101.8]
[1643464879661,23.2773,98.353,98.26,12.4]
[1643464880160,6.0,98.343,98.272,0.25]
[1643464880759,0.25,98.342,98.273,2.49439602]
[1643464881166,0.25,98.342,98.274,0.25]
[1643464881362,6.25,98.342,98.274,0.25]